fUST/lending_fUST_20240803
["ID","MTS","AMOUNT","RATE_DAILY","PERIOD"]
[334028000,1722693035315,-724.62,0.00013698,2]
[334028003,1722693035329,-724.62,0.00013698,2]
[334028005,1722693035339,-724.62,0.00013698,2]
[334028007,1722693035349,-500.0,0.00013698,2]
[334028009,1722693035359,-724.62,0.00013698,2]
[334028011,1722693035370,-724.62,0.00013698,2]
[334028014,1722693035388,-724.62,0.00013698,2]
[334028017,1722693035408,-500.0,0.00013698,2]
[334028019,1722693035424,-724.62,0.00013698,2]
[334028022,1722693035440,-724.62,0.00013698,2]
[334028025,1722693035455,-724.62,0.00013698,2]
[334028027,1722693035471,-724.62,0.00013698,2]
[334028030,1722693035486,-724.62,0.00013698,2]
[334028032,1722693035505,-724.62,0.00013698,2]
[334028033,1722693035519,-502.32893704,0.00013698,2]
[334028034,1722693035533,-510.69615583,0.00013698,2]
[334028037,1722693035546,-529.25978975,0.00013698,2]
[334028039,1722693035562,-1110.36,0.00013698,2]
[334028041,1722693035577,-161.757577,0.00013698,2]
[334028044,1722693035590,-509.20102688,0.00013698,2]
[334028046,1722693035603,-500.0,0.00013698,2]
[334028048,1722693035617,-161.757577,0.00013698,2]
[334028051,1722693035632,-161.757577,0.00013698,2]
[334028054,1722693035647,-644.00993767,0.00013698,2]
[334028056,1722693035662,-500.0,0.00013698,2]
[334028059,1722693035677,-161.757577,0.00013698,2]
[334028061,1722693035690,-500.0,0.00013698,2]
[334028063,1722693035702,-161.757577,0.00013698,2]
[334028064,1722693035714,-161.757585,0.00013698,2]
[334028065,1722693035729,-500.0,0.00013698,2]
[334028067,1722693035744,-500.0,0.00013698,2]
[334028069,1722693035759,-345.71259468,0.00013698,2]
[334028071,1722693035772,-278.24780069,0.00013698,2]
[334028073,1722693035786,-668.13,0.00013698,2]
[334028075,1722693035797,-506.08172079,0.00013698,2]
[334028076,1722693035809,-500.0,0.00013698,2]
[334028077,1722693035822,-500.0,0.00013698,2]
[334028078,1722693035834,-500.0,0.00013698,2]
[334028079,1722693035847,-500.0,0.00013698,2]
[334028080,1722693035859,-500.0,0.00013698,2]
[334028081,1722693035871,-504.28261206,0.00013698,2]
[334028082,1722693035884,-500.0,0.00013698,2]
[334028083,1722693035896,-500.0,0.00013698,2]
[334028084,1722693035910,-500.0,0.00013698,2]
[334028085,1722693035922,-503.9952865,0.00013698,2]
[334028086,1722693035934,-500.0,0.00013698,2]
[334028087,1722693035946,-500.0,0.00013698,2]
[334028088,1722693035959,-500.0,0.00013698,2]
[334028089,1722693035972,-500.0,0.00013698,2]
[334028090,1722693035985,-500.0,0.00013698,2]
[334028091,1722693035997,-500.0,0.00013698,2]
[334028092,1722693036010,-500.0,0.00013698,2]
[334028093,1722693036022,-500.0,0.00013698,2]
[334028094,1722693036035,-500.0,0.00013698,2]
[334028095,1722693036050,-501.50594311,0.00013698,2]
[334028096,1722693036062,-500.0,0.00013698,2]
[334028097,1722693036074,-500.0,0.00013698,2]
[334028098,1722693036086,-645.55270096,0.00013698,2]
[334028099,1722693036097,-500.0,0.00013698,2]
[334028100,1722693036109,-500.0,0.00013698,2]
[334028101,1722693036121,-500.0,0.00013698,2]
[334028102,1722693036134,-500.0,0.00013698,2]
[334028103,1722693036149,-500.0,0.00013698,2]
[334028104,1722693036161,-500.0,0.00013698,2]
[334028105,1722693036174,-501.06302906,0.00013698,2]
[334028106,1722693036186,-420.09507339,0.00013698,2]
[334028107,1722693036198,-500.0,0.00013698,2]
[334028108,1722693036209,-500.0,0.00013698,2]
[334028109,1722693036221,-516.91,0.00013698,2]
[334028110,1722693036233,-500.0,0.00013698,2]
[334028111,1722693036245,-500.0,0.00013698,2]
[334028112,1722693036259,-500.46436097,0.00013698,2]
[334028113,1722693036271,-502.89600577,0.00013698,2]
[334028114,1722693036284,-500.0,0.00013698,2]
[334028115,1722693036295,-500.0,0.00013698,2]
[334028116,1722693036307,-597.16655605,0.00013698,2]
[334028117,1722693036319,-500.0,0.00013698,2]
[334028118,1722693036331,-500.0,0.00013698,2]
[334028119,1722693036343,-500.0,0.00013698,2]
[334028120,1722693036354,-629.71,0.00013698,2]
[334028121,1722693036475,-500.0,0.00013698,2]
[334028122,1722693036490,-500.0,0.00013698,2]
[334028123,1722693036504,-1596.1,0.00013698,2]
[334028124,1722693036514,-506.44181025,0.00013698,2]
[334028125,1722693036523,-503.69903123,0.00013698,2]
[334028126,1722693036532,-507.0577964,0.00013698,2]
[334028127,1722693036541,-500.0,0.00013698,2]
[334028128,1722693036550,-500.0,0.00013698,2]
[334028129,1722693036560,-500.0,0.00013698,2]
[334028130,1722693036569,-500.0,0.00013698,2]
[334028131,1722693036581,-463.11357098,0.00013698,2]
[334028132,1722693036593,-500.0,0.00013698,2]
[334028133,1722693036604,-500.0,0.00013698,2]
[334028134,1722693036615,-500.0,0.00013698,2]
[334028135,1722693036627,-500.0,0.00013698,2]
[334028136,1722693036638,-500.0,0.00013698,2]
[334028137,1722693036649,-501.84951467,0.00013698,2]
[334028138,1722693036659,-500.0,0.00013698,2]
[334028139,1722693036672,-500.0,0.00013698,2]
[334028140,1722693036681,-506.38312889,0.00013698,2]
[334028141,1722693036690,-500.0,0.00013698,2]
[334028142,1722693036699,-500.0,0.00013698,2]
[334028143,1722693036709,-500.0,0.00013698,2]
[334028144,1722693036719,-500.0,0.00013698,2]
[334028145,1722693036728,-500.0,0.00013698,2]
[334028146,1722693036738,-500.0,0.00013698,2]
[334028147,1722693036747,-500.0,0.00013698,2]
[334028148,1722693036758,-500.0,0.00013698,2]
[334028149,1722693036768,-519.56,0.00013698,2]
[334028150,1722693036779,-500.0,0.00013698,2]
[334028151,1722693036790,-500.0,0.00013698,2]
[334028152,1722693036799,-500.0,0.00013698,2]
[334028153,1722693036809,-500.0,0.00013698,2]
[334028154,1722693036820,-500.0,0.00013698,2]
[334028155,1722693036831,-500.0,0.00013698,2]
[334028156,1722693036842,-500.0,0.00013698,2]
[334028157,1722693036854,-500.0,0.00013698,2]
[334028158,1722693036864,-500.0,0.00013698,2]
[334028159,1722693036874,-500.0,0.00013698,2]
[334028160,1722693036885,-389.60615886,0.00013698,2]
[334028161,1722693036897,-500.0,0.00013698,2]
[334028162,1722693036908,-367.0113231,0.00013698,2]
[334028163,1722693036920,-500.0,0.00013698,2]
[334028164,1722693036929,-500.0,0.00013698,2]
[334028165,1722693036940,-500.0,0.00013698,2]
[334028166,1722693036951,-500.0,0.00013698,2]
[334028167,1722693036961,-500.0,0.00013698,2]
[334028168,1722693036970,-500.55305366,0.00013698,2]
[334028169,1722693036979,-500.0,0.00013698,2]
[334028170,1722693036989,-500.0,0.00013698,2]
[334028171,1722693036999,-644.71253647,0.00013698,2]
[334028172,1722693037008,-500.0,0.00013698,2]
[334028173,1722693037018,-500.0,0.00013698,2]
[334028174,1722693037027,-500.0,0.00013698,2]
[334028175,1722693037036,-500.0,0.00013698,2]
[334028176,1722693037046,-511.28630101,0.00013698,2]
[334028177,1722693037055,-500.0,0.00013698,2]
[334028178,1722693037065,-500.0,0.00013698,2]
[334028179,1722693037074,-500.0,0.00013698,2]
[334028180,1722693037083,-151.0,0.00013698,2]
[334028181,1722693037093,-337.714187,0.00013698,2]
[334028182,1722693037103,-503.76422453,0.00013698,2]
[334028183,1722693037112,-624.65061925,0.00013698,2]
[334028184,1722693037121,-500.0,0.00013698,2]
[334028185,1722693037131,-506.62839241,0.00013698,2]
[334028186,1722693037140,-337.714195,0.00013698,2]
[334028187,1722693037149,-868.28,0.00013698,2]
[334028188,1722693037158,-500.0,0.00013698,2]
[334028189,1722693037167,-500.0,0.00013698,2]
[334028190,1722693037177,-500.0,0.00013698,2]
[334028191,1722693037186,-500.0,0.00013698,2]
[334028192,1722693037196,-528.99664066,0.00013698,2]
[334028193,1722693037205,-500.0,0.00013698,2]
[334028194,1722693037214,-500.0,0.00013698,2]
[334028195,1722693037224,-636.54,0.00013698,2]
[334028196,1722693037234,-500.0,0.00013698,2]
[334028197,1722693037243,-500.0,0.00013698,2]
[334028198,1722693037254,-500.0,0.00013698,2]
[334028199,1722693037264,-502.391791,0.00013698,2]
[334028200,1722693037274,-500.0,0.00013698,2]
[334028201,1722693037283,-500.0,0.00013698,2]
[334028202,1722693037292,-500.0,0.00013698,2]
[334028203,1722693037302,-596.75848101,0.00013698,2]
[334028204,1722693037311,-500.0,0.00013698,2]
[334028205,1722693037321,-500.0,0.00013698,2]
[334028206,1722693037330,-500.0,0.00013698,2]
[334028207,1722693037340,-500.0,0.00013698,2]
[334028208,1722693037349,-500.0,0.00013698,2]
[334028209,1722693037358,-506.19468139,0.00013698,2]
[334028210,1722693037367,-936.17,0.00013698,2]
[334028211,1722693037377,-492.65267278,0.00013698,2]
[334028212,1722693037386,-500.0,0.00013698,2]
[334028213,1722693037395,-500.0,0.00013698,2]
[334028214,1722693037405,-500.0,0.00013698,2]
[334028215,1722693037414,-620.96,0.00013698,2]
[334028216,1722693037424,-500.60126419,0.00013698,2]
[334028217,1722693037433,-502.7648701,0.00013698,2]
[334028218,1722693037442,-500.0,0.00013698,2]
[334028219,1722693037451,-500.0,0.00013698,2]
[334028220,1722693037461,-500.0,0.00013698,2]
[334028221,1722693037471,-510.1017678,0.00013698,2]
[334028222,1722693037481,-500.0,0.00013698,2]
[334028223,1722693037490,-500.0,0.00013698,2]
[334028224,1722693037502,-503.33056851,0.00013698,2]
[334028225,1722693037512,-500.0,0.00013698,2]
[334028226,1722693037522,-500.0,0.00013698,2]
[334028227,1722693037531,-218.38410685,0.00013698,2]
[334028228,1722693037540,-500.0,0.00013698,2]
[334028229,1722693037551,-500.0,0.00013698,2]
[334028230,1722693037560,-500.0,0.00013698,2]
[334028231,1722693037569,-500.0,0.00013698,2]
[334028232,1722693037581,-500.0,0.00013698,2]
[334028233,1722693037591,-500.0,0.00013698,2]
[334028234,1722693037602,-500.0,0.00013698,2]
[334028235,1722693037613,-500.0,0.00013698,2]
[334028236,1722693037624,-500.0,0.00013698,2]
[334028237,1722693037635,-500.0,0.00013698,2]
[334028238,1722693037645,-500.0,0.00013698,2]
[334028239,1722693037657,-609.21658679,0.00013698,2]
[334028240,1722693037670,-500.0,0.00013698,2]
[334028241,1722693037679,-500.0,0.00013698,2]
[334028242,1722693037690,-500.0,0.00013698,2]
[334028243,1722693037700,-500.0,0.00013698,2]
[334028244,1722693037709,-500.0,0.00013698,2]
[334028245,1722693037718,-500.0,0.00013698,2]
[334028246,1722693037728,-500.0,0.00013698,2]
[334028248,1722693037739,-500.0,0.00013698,2]
[334028249,1722693037750,-543.45019637,0.00013698,2]
[334028250,1722693037761,-500.0,0.00013698,2]
[334028251,1722693037772,-500.0,0.00013698,2]
[334028252,1722693037783,-1313.74,0.00013698,2]
[334028253,1722693037794,-500.0,0.00013698,2]
[334028254,1722693037804,-500.0,0.00013698,2]
[334028255,1722693037813,-500.0,0.00013698,2]
[334028256,1722693037823,-500.0,0.00013698,2]
[334028257,1722693037832,-442.32154052,0.00013698,2]
[334028258,1722693037842,-500.0,0.00013698,2]
[334028259,1722693037852,-507.9071188,0.00013698,2]
[334028260,1722693037865,-504.53623657,0.00013698,2]
[334028261,1722693037875,-500.0,0.00013698,2]
[334028262,1722693037886,-500.0,0.00013698,2]
[334028263,1722693037897,-500.0,0.00013698,2]
[334028264,1722693037910,-500.0,0.00013698,2]
[334028265,1722693037920,-500.0,0.00013698,2]
[334028266,1722693037930,-329.04185234,0.00013698,2]
[334028267,1722693037942,-500.0,0.00013698,2]
[334028268,1722693037952,-500.0,0.00013698,2]
[334028269,1722693037963,-500.0,0.00013698,2]
[334028270,1722693037974,-500.0,0.00013698,2]
[334028271,1722693037985,-500.0,0.00013698,2]
[334028272,1722693037996,-901.21,0.00013698,2]
[334028273,1722693038006,-500.0,0.00013698,2]
[334028274,1722693038017,-474.1354094,0.00013698,2]
[334028275,1722693038027,-500.0,0.00013698,2]
[334028276,1722693038037,-506.42729051,0.00013698,2]
[334028277,1722693038048,-500.0,0.00013698,2]
[334028278,1722693038059,-537.4749653,0.00013698,2]
[334028279,1722693038069,-552.42743502,0.00013698,2]
[334028280,1722693038079,-500.0,0.00013698,2]
[334028281,1722693038089,-500.0,0.00013698,2]
[334028282,1722693038099,-500.0,0.00013698,2]
[334028283,1722693038111,-500.0,0.00013698,2]
[334028284,1722693038121,-543.10242154,0.00013698,2]
[334028285,1722693038132,-501.52075038,0.00013698,2]
[334028286,1722693038144,-500.0,0.00013698,2]
[334028287,1722693038155,-500.0,0.00013698,2]
[334028288,1722693038168,-273.26276284,0.00013698,2]
[334028289,1722693038179,-500.0,0.00013698,2]
[334028290,1722693038190,-500.0,0.00013698,2]
[334028291,1722693038202,-500.0,0.00013698,2]
[334028293,1722693038213,-504.38445632,0.00013698,2]
[334028296,1722693038224,-500.0,0.00013698,2]
[334028298,1722693038235,-500.0,0.00013698,2]
[334028300,1722693038247,-500.0,0.00013698,2]
[334028302,1722693038260,-500.0,0.00013698,2]
[334028304,1722693038270,-500.0,0.00013698,2]
[334028306,1722693038281,-500.0,0.00013698,2]
[334028308,1722693038293,-500.0,0.00013698,2]
[334028311,1722693038304,-500.0,0.00013698,2]
[334028313,1722693038316,-500.0,0.00013698,2]
[334028315,1722693038326,-603.51210857,0.00013698,2]
[334028317,1722693038337,-500.0,0.00013698,2]
[334028320,1722693038347,-500.0,0.00013698,2]
[334028323,1722693038357,-524.11722328,0.00013698,2]
[334028326,1722693038367,-500.0,0.00013698,2]
[334028328,1722693038378,-500.0,0.00013698,2]
[334028329,1722693038388,-527.17793798,0.00013698,2]
[334028330,1722693038399,-500.0,0.00013698,2]
[334028331,1722693038410,-500.0,0.00013698,2]
[334028332,1722693038421,-500.0,0.00013698,2]
[334028333,1722693038431,-500.0,0.00013698,2]
[334028334,1722693038441,-500.0,0.00013698,2]
[334028335,1722693038452,-500.0,0.00013698,2]
[334028336,1722693038463,-516.24800481,0.00013698,2]
[334028337,1722693038473,-501.15234021,0.00013698,2]
[334028339,1722693038483,-761.59,0.00013698,2]
[334028340,1722693038493,-500.0,0.00013698,2]
[334028341,1722693038508,-500.0,0.00013698,2]
[334028342,1722693038520,-500.0,0.00013698,2]
[334028343,1722693038531,-500.0,0.00013698,2]
[334028344,1722693038543,-500.0,0.00013698,2]
[334028345,1722693038553,-3064.15,0.00013698,2]
[334028346,1722693038649,-500.0,0.00013698,2]
[334028347,1722693038660,-3064.15,0.00013698,2]
[334028348,1722693038672,-3064.15,0.00013698,2]
[334028349,1722693038683,-505.60774106,0.00013698,2]
[334028350,1722693038694,-3064.15,0.00013698,2]
[334028351,1722693038706,-3064.15,0.00013698,2]
[334028352,1722693038716,-500.0,0.00013698,2]
[334028353,1722693038728,-3064.15,0.00013698,2]
[334028354,1722693038740,-3064.15,0.00013698,2]
[334028355,1722693038750,-3064.15,0.00013698,2]
[334028356,1722693038762,-500.0,0.00013698,2]
[334028357,1722693038772,-3064.15,0.00013698,2]
[334028358,1722693038783,-500.0,0.00013698,2]
[334028359,1722693038793,-3064.15,0.00013698,2]
[334028360,1722693038803,-500.0,0.00013698,2]
[334028361,1722693038814,-500.0,0.00013698,2]
[334028362,1722693038824,-3064.15,0.00013698,2]
[334028363,1722693038835,-3064.15,0.00013698,2]
[334028364,1722693038845,-3064.15,0.00013698,2]
[334028365,1722693038855,-3064.15,0.00013698,2]
[334028366,1722693038866,-500.0,0.00013698,2]
[334028367,1722693038877,-3064.15,0.00013698,2]
[334028368,1722693038887,-166.92801832,0.00013698,2]
[334028369,1722693038897,-3064.15,0.00013698,2]
[334028370,1722693038906,-3064.15,0.00013698,2]
[334028371,1722693038915,-500.0,0.00013698,2]
[334028372,1722693038926,-3064.15,0.00013698,2]
[334028373,1722693038937,-3064.15,0.00013698,2]
[334028374,1722693038948,-3064.15,0.00013698,2]
[334028375,1722693038958,-500.0,0.00013698,2]
[334028376,1722693038969,-3064.15,0.00013698,2]
[334028377,1722693038981,-500.0,0.00013698,2]
[334028378,1722693038991,-3064.15,0.00013698,2]
[334028379,1722693039001,-3064.15,0.00013698,2]
[334028380,1722693039013,-3064.2567,0.00013698,2]
[334028381,1722693039024,-501.39304868,0.00013698,2]
[334028382,1722693039035,-504.91443185,0.00013698,2]
[334028383,1722693039046,-512.44277734,0.00013698,2]
[334028384,1722693039057,-500.0,0.00013698,2]
[334028385,1722693039068,-500.86909332,0.00013698,2]
[334028386,1722693039079,-1270.35,0.00013698,2]
[334028387,1722693039090,-500.0,0.00013698,2]
[334028388,1722693039099,-500.0,0.00013698,2]
[334028389,1722693039110,-500.0,0.00013698,2]
[334028390,1722693039119,-500.0,0.00013698,2]
[334028391,1722693039128,-500.0,0.00013698,2]
[334028392,1722693039138,-501.51729721,0.00013698,2]
[334028393,1722693039148,-500.0,0.00013698,2]
[334028394,1722693039158,-501.35478265,0.00013698,2]
[334028395,1722693039167,-500.0,0.00013698,2]
[334028396,1722693039176,-500.0,0.00013698,2]
[334028397,1722693039187,-150.0,0.00013698,2]
[334028398,1722693039196,-500.0,0.00013698,2]
[334028399,1722693039207,-500.0,0.00013698,2]
[334028400,1722693039218,-500.0,0.00013698,2]
[334028401,1722693039228,-500.0,0.00013698,2]
[334028402,1722693039237,-421.4717032,0.00013698,2]
[334028403,1722693039247,-500.0,0.00013698,2]
[334028404,1722693039256,-500.0,0.00013698,2]
[334028405,1722693039269,-500.0,0.00013698,2]
[334028406,1722693039279,-520.49536738,0.00013698,2]
[334028407,1722693039288,-502.14057775,0.00013698,2]
[334028408,1722693039298,-574.15306033,0.00013698,2]
[334028409,1722693039307,-506.98185039,0.00013698,2]
[334028410,1722693039317,-500.0,0.00013698,2]
[334028411,1722693039326,-500.0,0.00013698,2]
[334028412,1722693039336,-500.0,0.00013698,2]
[334028413,1722693039345,-500.0,0.00013698,2]
[334028414,1722693039355,-500.0,0.00013698,2]
[334028415,1722693039364,-500.0,0.00013698,2]
[334028416,1722693039374,-500.0,0.00013698,2]
[334028417,1722693039383,-613.05358503,0.00013698,2]
[334028418,1722693039392,-500.0,0.00013698,2]
[334028419,1722693039402,-2487.26,0.00013698,2]
[334028420,1722693039413,-500.7472132,0.00013698,2]
[334028421,1722693039423,-508.06941753,0.00013698,2]
[334028422,1722693039433,-500.0,0.00013698,2]
[334028423,1722693039443,-500.0,0.00013698,2]
[334028424,1722693039455,-2181.45,0.00013698,2]
[334028425,1722693039467,-516.94326714,0.00013698,2]
[334028426,1722693039478,-517.45085263,0.00013698,2]
[334028427,1722693039488,-500.0,0.00013698,2]
[334028428,1722693039502,-500.0,0.00013698,2]
[334028429,1722693039514,-1040.16,0.00013698,2]
[334028430,1722693039523,-487.38512965,0.00013698,2]
[334028431,1722693039532,-500.0,0.00013698,2]
[334028432,1722693039542,-502.19804139,0.00013698,2]
[334028433,1722693039554,-500.0,0.00013698,2]
[334028434,1722693039565,-500.47724235,0.00013698,2]
[334028435,1722693039577,-500.0,0.00013698,2]
[334028436,1722693039589,-500.0,0.00013698,2]
[334028437,1722693039599,-501.59560183,0.00013698,2]
[334028438,1722693039608,-500.0,0.00013698,2]
[334028439,1722693039619,-2091.67,0.00013698,2]
[334028440,1722693039632,-427.61,0.00013698,2]
[334028441,1722693039644,-500.0,0.00013698,2]
[334028442,1722693039655,-500.0,0.00013698,2]
[334028443,1722693039666,-500.0,0.00013698,2]
[334028444,1722693039678,-500.9047467,0.00013698,2]
[334028445,1722693039688,-503.60090327,0.00013698,2]
[334028446,1722693039699,-8312.34,0.00013698,2]
[334028447,1722693039709,-501.05190759,0.00013698,2]
[334028448,1722693039720,-500.0,0.00013698,2]
[334028449,1722693039730,-505.2888289,0.00013698,2]
[334028450,1722693039739,-500.0,0.00013698,2]
[334028451,1722693039748,-500.0,0.00013698,2]
[334028452,1722693039758,-508.33633488,0.00013698,2]
[334028453,1722693039767,-500.0,0.00013698,2]
[334028454,1722693039777,-500.0,0.00013698,2]
[334028455,1722693039787,-560.99210467,0.00013698,2]
[334028456,1722693039798,-500.0,0.00013698,2]
[334028457,1722693039807,-500.0,0.00013698,2]
[334028458,1722693039816,-500.0,0.00013698,2]
[334028459,1722693039826,-500.0,0.00013698,2]
[334028460,1722693039835,-2779.48,0.00013698,2]
[334028461,1722693039845,-501.31876834,0.00013698,2]
[334028462,1722693039855,-500.0,0.00013698,2]
[334028463,1722693039864,-500.0,0.00013698,2]
[334028464,1722693039873,-500.0,0.00013698,2]
[334028465,1722693039883,-500.0,0.00013698,2]
[334028467,1722693039892,-1349.38,0.00013698,2]
[334028468,1722693039902,-500.0,0.00013698,2]
[334028469,1722693039912,-500.0,0.00013698,2]
[334028470,1722693039923,-500.0,0.00013698,2]
[334028471,1722693039933,-500.0,0.00013698,2]
[334028473,1722693039942,-500.0,0.00013698,2]
[334028475,1722693039952,-500.0,0.00013698,2]
[334028476,1722693039962,-500.0,0.00013698,2]
[334028477,1722693039971,-502.40879419,0.00013698,2]
[334028478,1722693039980,-388.96379123,0.00013698,2]
[334028479,1722693039991,-542.94,0.00013698,2]
[334028480,1722693040000,-500.0,0.00013698,2]
[334028481,1722693040010,-603.95,0.00013698,2]
[334028482,1722693040020,-500.0,0.00013698,2]
[334028483,1722693040031,-500.0,0.00013698,2]
[334028484,1722693040041,-500.0,0.00013698,2]
[334028485,1722693040051,-669.01,0.00013698,2]
[334028486,1722693040061,-500.0,0.00013698,2]
[334028487,1722693040071,-500.0,0.00013698,2]
[334028488,1722693040080,-151.0,0.00013698,2]
[334028489,1722693040090,-500.0,0.00013698,2]
[334028490,1722693040100,-500.0,0.00013698,2]
[334028491,1722693040109,-390.86600594,0.00013698,2]
[334028492,1722693040118,-500.0,0.00013698,2]
[334028493,1722693040128,-507.82098782,0.00013698,2]
[334028495,1722693040137,-151.0,0.00013698,2]
[334028497,1722693040147,-500.0,0.00013698,2]
[334028499,1722693040156,-500.0,0.00013698,2]
[334028501,1722693040166,-577.58756033,0.00013698,2]
[334028503,1722693040175,-317.39242192,0.00013698,2]
[334028505,1722693040184,-971.34,0.00013698,2]
[334028507,1722693040195,-503.29388024,0.00013698,2]
[334028508,1722693040205,-542.89512703,0.00013698,2]
[334028510,1722693040214,-500.0,0.00013698,2]
[334028512,1722693040224,-547.83864903,0.00013698,2]
[334028513,1722693040234,-505.07206727,0.00013698,2]
[334028514,1722693040244,-500.0,0.00013698,2]
[334028515,1722693040254,-2164.5,0.00013698,2]
[334028516,1722693040265,-500.0,0.00013698,2]
[334028517,1722693040275,-500.0,0.00013698,2]
[334028518,1722693040284,-500.0,0.00013698,2]
[334028519,1722693040296,-500.0,0.00013698,2]
[334028520,1722693040306,-500.0,0.00013698,2]
[334028521,1722693040317,-500.0,0.00013698,2]
[334028522,1722693040327,-500.0,0.00013698,2]
[334028523,1722693040338,-500.0,0.00013698,2]
[334028524,1722693040348,-500.0,0.00013698,2]
[334028526,1722693040359,-502.382924,0.00013698,2]
[334028527,1722693040369,-502.17384482,0.00013698,2]
[334028528,1722693040380,-1967.44,0.00013698,2]
[334028529,1722693040391,-500.0,0.00013698,2]
[334028530,1722693040403,-500.0,0.00013698,2]
[334028531,1722693040414,-500.0,0.00013698,2]
[334028532,1722693040424,-564.71,0.00013698,2]
[334028533,1722693040433,-500.0,0.00013698,2]
[334028534,1722693040444,-477.29743375,0.00013698,2]
[334028535,1722693040453,-500.0,0.00013698,2]
[334028537,1722693040463,-6678.29,0.00013698,2]
[334028538,1722693040472,-500.0,0.00013698,2]
[334028539,1722693040482,-502.40996077,0.00013698,2]
[334028540,1722693040492,-520.24,0.00013698,2]
[334028541,1722693040502,-774.19,0.00013698,2]
[334028542,1722693040512,-500.0,0.00013698,2]
[334028543,1722693040522,-500.0,0.00013698,2]
[334028544,1722693040531,-500.0,0.00013698,2]
[334028545,1722693040617,-532.01178042,0.00013698,2]
[334028546,1722693040627,-513.69850498,0.00013698,2]
[334028547,1722693040637,-628.37,0.00013698,2]
[334028548,1722693040647,-500.0,0.00013698,2]
[334028550,1722693040656,-500.0,0.00013698,2]
[334028551,1722693040665,-500.0,0.00013698,2]
[334028552,1722693040675,-500.0,0.00013698,2]
[334028553,1722693040684,-500.0,0.00013698,2]
[334028554,1722693040694,-500.0,0.00013698,2]
[334028555,1722693040703,-890.25,0.00013698,2]
[334028556,1722693040713,-500.0,0.00013698,2]
[334028557,1722693040723,-500.0,0.00013698,2]
[334028558,1722693040732,-500.0,0.00013698,2]
[334028559,1722693040742,-500.0,0.00013698,2]
[334028560,1722693040752,-507.47,0.00013698,2]
[334028561,1722693040762,-500.0,0.00013698,2]
[334028562,1722693040772,-500.0,0.00013698,2]
[334028563,1722693040782,-500.0,0.00013698,2]
[334028564,1722693040791,-500.0,0.00013698,2]
[334028565,1722693040801,-502.10458256,0.00013698,2]
[334028566,1722693040811,-2633.59,0.00013698,2]
[334028567,1722693040820,-908.6,0.00013698,2]
[334028568,1722693040830,-500.0,0.00013698,2]
[334028569,1722693040839,-500.0,0.00013698,2]
[334028570,1722693040848,-907.04,0.00013698,2]
[334028571,1722693040858,-500.0,0.00013698,2]
[334028572,1722693040867,-500.0,0.00013698,2]
[334028573,1722693040877,-500.0,0.00013698,2]
[334028574,1722693040886,-621.25504861,0.00013698,2]
[334028575,1722693040896,-501.53597063,0.00013698,2]
[334028576,1722693040905,-500.0,0.00013698,2]
[334028577,1722693040915,-500.0,0.00013698,2]
[334028578,1722693040925,-500.0,0.00013698,2]